Cogmind - Beta 11.1 @@@ ROGUE MODE // 2022.07.11 @ 11:05:18 Player: Smie Result: Destroyed by S-27 Virus with Autogun Performance ------------- Evolutions (4) 2000 Regions Visited (10) 2000 Robots Destroyed (73) 365 Value Destroyed (3033) 3033 Prototype IDs (1) 20 Alien Tech Used (0) 0 Bonus (1400) 1400 TOTAL SCORE: 8818 Bonus ------- Entered Garrisons 400 Used RIF Installer 500 Entered DSFs 500 Cogmind --------- Core Integrity 0/850 Matter 300/300 Energy 49/100 System Corruption 4% Temperature Cool (0) Movement Core (50) Location -6/Garrison Parts ------- > --- POWER (1) -------- (None) > --- PROPULSION (5) --- (None) > --- UTILITY (6) ------ Visual Processing Unit Signal Interpreter Improved Target Analyzer > --- WEAPON (3) ------- Power Sword > --- INVENTORY (5) ---- Carbon-fiber Leg Carbon-fiber Leg Armored Leg Relay Coupler [NC] (31) Relay Coupler [Grunt] (29) Peak State ------------ > --- POWER ------------ Light Angular Momentum Engine > --- PROPULSION ------- Armored Leg Armored Leg Armored Leg Armored Leg Armored Leg > --- UTILITY ---------- Coolant Injector High-capacity Storage Unit Visual Processing Unit Signal Interpreter Targeting Computer Improved Target Analyzer > --- WEAPON ----------- Force Rifle Force Rifle Force Rifle > --- INVENTORY -------- Carbon-fiber Leg Carbon-fiber Leg Carbon-fiber Leg Flexi-carbon Leg Armored Leg Armored Wheel Advanced Heat Sink High-capacity Matter Pod Improved Light Armor Plating Focal Shield Relay Coupler [NC] Relay Coupler [Grunt] Relay Coupler [Sentry] Dynamic Insulation System Heavy Laser Gatling Laser Heavy Hammer Power Sword [Rating: 68] Favorites ----------- Power Ion Engine Engine Ion Engine Power Core Light Nuclear Core Propulsion Aluminum Leg Treads Improved Medium Treads Leg Aluminum Leg Wheel Compact Wheel Utility Signal Interpreter Device Cooling System Storage Large Storage Unit Processor Signal Interpreter Protection Hardened Medium Armor Plating Weapon Particle Cannon Energy Gun Small Laser Energy Cannon Particle Cannon Ballistic Gun Assault Rifle Launcher Grenade Launcher Impact Weapon Heavy Hammer Slashing Weapon Axe Build | -11 -10 -10 -10 -9 -8 -7 -7 -7 -6 -6 ------- Run | Scr Mat Min Exi Min Mat Fac DSF Gar Fac Gar Slots Evolved 8 | . . . . . 4 2 . . 2 . Power . | . . . . . . . . . . . Propulsion 3 | . . . . . 2 1 . . . . Utility 4 | . . . . . 2 1 . . 1 . Weapon 1 | . . . . . . . . . 1 . Parts Attached 116 | 6 13 11 . . 27 4 5 11 28 11 Power 12 | 1 . 2 . . 4 . . 2 1 2 Engine 6 | 1 . 1 . . 2 . . . . 2 Core 6 | . . 1 . . 2 . . 2 1 . Reactor . | . . . . . . . . . . . Propulsion 39 | 2 2 4 . . 10 1 3 4 12 1 Treads 2 | . . . . . . . . . 1 1 Leg 34 | . 2 4 . . 10 1 3 3 11 . Wheel 3 | 2 . . . . . . . 1 . . Hover . | . . . . . . . . . . . Flight . | . . . . . . . . . . . Utility 19 | 1 2 . . . 4 3 . 1 5 3 Device 7 | . . . . . 1 1 . 1 2 2 Storage 3 | 1 1 . . . . . . . 1 . Processor 4 | . 1 . . . . 1 . . 1 1 Hackware . | . . . . . . . . . . . Protection 5 | . . . . . 3 1 . . 1 . Artifact . | . . . . . . . . . . . Weapon 46 | 2 9 5 . . 9 . 2 4 10 5 Energy Gun 18 | . . 1 . . 2 . 2 3 6 4 Energy Cannon 11 | . 4 2 . . 4 . . . 1 . Ballistic Gun 5 | 2 3 . . . . . . . . . Ballistic Cannon . | . . . . . . . . . . . Launcher 4 | . . 2 . . . . . 1 1 . Special Weapon . | . . . . . . . . . . . Impact Weapon 5 | . 2 . . . 3 . . . . . Slashing Weapon 3 | . . . . . . . . . 2 1 Piercing Weapon . | . . . . . . . . . . . Special Melee Weapon . | . . . . . . . . . . . Unidentified Prototypes 1 | . . . . . . . . . 1 . Parts Lost 53 | . . 1 . . 6 . 3 12 8 23 Power 8 | . . . . . 2 . . 2 2 2 Propulsion 19 | . . . . . 2 . 3 5 1 8 Utility 12 | . . . . . 2 . . 2 2 6 Weapon 14 | . . 1 . . . . . 3 3 7 Highest Loss Streak 22 | . . 1 . . 3 . 3 5 4 22 To Critical Strikes . | . . . . . . . . . . . Average Slot Usage (%) 96 | . 98 100 100 100 97 100 91 73 95 90 Engine 5 | . 14 7 . . 3 . . . . 4 Core 5 | . . 6 14 14 5 7 7 4 5 . Leg 27 | . 17 28 28 28 35 38 31 22 28 28 Wheel 2 | . 9 . . . . . . 3 1 . Device 3 | . . . . . 9 9 7 2 7 5 Storage 11 | . 14 14 14 14 9 7 7 7 6 5 Processor 14 | . 13 14 14 14 9 15 15 15 19 25 Protection 2 | . . . . . 7 4 7 1 4 . Energy Gun 7 | . . 6 14 14 5 . 13 13 16 17 Energy Cannon 13 | . 21 20 14 14 11 15 . . . . Ballistic Gun 1 | . 5 . . . . . . . . . Naked Turns . | . . . . . . . . . . . Heaviest Build 65 | 14 33 33 30 30 48 48 42 42 63 65 Greatest Support 84 | 32 32 20 20 20 40 50 68 68 84 80 Greatest Overweight (x) 3 | 3 1 1 1 1 1 . 1 2 2 1 Average Overweight (x) . | . . 1 1 1 . . . 1 . . Largest Inventory Capacity 20 | 8 15 15 15 15 15 15 15 15 20 20 Average Capacity 14 | 7 12 15 15 15 15 15 15 15 16 19 Most Carried 20 | 6 15 15 15 15 15 14 15 15 15 20 Average Carried 12 | 5 9 14 14 15 14 12 12 11 14 14 Final Capacity 20 | 8 15 15 15 15 15 15 15 15 20 5 Final Carried 15 | 6 15 15 15 15 14 14 12 15 15 5 Class Distribution -------------------- 49% | Scavenger-Mutant 40% | Mutant 8% | Scavenger-Gunner Dominant Class ---------------- Mutant | -10/Materials Mutant | -10/Mines Scavenger-Mutant | -10/Exiles Scavenger-Mutant | -9/Mines Scavenger-Mutant | -8/Materials Scavenger-Mutant | -7/Factory Scavenger-Mutant | -7/DSF Scavenger-Mutant | -7/Garrison Scavenger-Gunner | -6/Factory Gunner | -6/Garrison Resources | -11 -10 -10 -10 -9 -8 -7 -7 -7 -6 -6 ----------- Run | Scr Mat Min Exi Min Mat Fac DSF Gar Fac Gar Matter Collected 1519 | 151 454 155 . . 252 . 81 97 151 178 Remotely . | . . . . . . . . . . . Salvage Created 3055 | . 554 214 . . 901 . 113 284 294 695 Parts 163 | . 37 21 . . 47 . 3 7 19 29 Haulers Intercepted 1 | . 1 . . . . . . . . . Recyclers Shooed 1 | . 1 . . . . . . . . . Parts Field Recycled . | . . . . . . . . . . . Retrieved Matter . | . . . . . . . . . . . Parts Self-Destructed . | . . . . . . . . . . . Prevented . | . . . . . . . . . . . Kills | -11 -10 -10 -10 -9 -8 -7 -7 -7 -6 -6 ------- Run | Scr Mat Min Exi Min Mat Fac DSF Gar Fac Gar Combat Hostiles Destroyed 67 | . 14 10 . . 17 . 2 7 7 10 Melee 4 | . . . . . . . . . 3 1 Guns 29 | . 5 1 . . 5 . 2 6 1 9 Cannons 23 | . 8 3 . . 12 . . . . . AOE 11 | . 1 6 . . . . . 1 3 . Classes Destroyed 13 | . 5 1 . . 4 . 1 1 1 . Worker 2 | . . 1 . . 1 . . . . . Builder 1 | . . . . . 1 . . . . . Hauler 1 | . 1 . . . . . . . . . Recycler 1 | . 1 . . . . . . . . . Watcher 1 | . 1 . . . . . . . . . Swarmer 12 | . 6 6 . . . . . . . . Saboteur 1 | . . . . . . . . . 1 . Grunt 38 | . 8 4 . . 12 . . 6 3 5 Brawler 2 | . . . . . 1 . . . . 1 Duelist 1 | . . . . . 1 . . . . . Sentry 6 | . . . . . 3 . . . . 3 Specialist 3 | . . . . . . . 2 . 1 . Programmer 4 | . . . . . . . . 1 2 1 Best Kill Streak 6 | . 5 3 . . 6 . 2 5 3 4 Combat Bots Only 5 | . 4 3 . . 5 . 2 5 3 4 Max Kills in Single Turn 2 | . 2 2 . . 1 . 1 1 1 2 Gunslinging 1 | . . . . . . . . . . 1 Exploded 2 | . 1 2 . . . . . 1 1 . Melee 1 | . . . . . . . . . 1 1 Uniques/NPCs Destroyed . | . . . . . . . . . . . Combat | -11 -10 -10 -10 -9 -8 -7 -7 -7 -6 -6 -------- Run | Scr Mat Min Exi Min Mat Fac DSF Gar Fac Gar Damage Taken 7880 | . 367 383 . . 1398 . 541 1129 1457 2605 Core 1373 | . 69 46 . . 123 . 65 211 131 728 Absorbed by Shields 249 | . . . . . . . 71 . . 178 Regen/Repaired (Parts) 61 | . 14 . . . 47 . . . . . Core Remaining (%) 72 | 100 . . . 54 77 . . 60 . . Volleys Fired 179 | . 27 20 . . 65 . 5 32 13 17 Largest 3 | . 2 2 . . 2 . 2 2 3 3 Hottest 240 | . 136 136 . . 150 . 126 128 193 240 Shots Fired 340 | . 52 32 . . 125 . 10 56 21 44 Gun 194 | . 25 3 . . 40 . 10 54 18 44 Cannon 137 | . 27 25 . . 85 . . . . . Launcher 9 | . . 4 . . . . . 2 3 . Special . | . . . . . . . . . . . Kinetic 25 | . 25 . . . . . . . . . Thermal 306 | . 27 28 . . 125 . 10 54 18 44 Explosive 9 | . . 4 . . . . . 2 3 . Electromagnetic . | . . . . . . . . . . . Robot Hit Streak 15 | . 15 7 . . 12 . 7 11 7 9 Robot Miss Streak 4 | . 4 2 . . 2 . 1 4 2 2 Penetration Max . | . . . . . . . . . . . Secondary Targets 6 | . . . . . . . 1 1 . 4 Max Gunslinging Chain 1 | . . . . . . . 1 1 . 1 Shots Hit Robots 249 | . 30 17 . . 89 . 8 44 22 39 Core Hits 138 | . 18 16 . 1 36 . 4 18 25 20 Critical Kills 3 | . . . . . . . . . . 3 Critical Parts Destroyed 3 | . 1 . . . 1 . . . . 1 Critical Strikes 12 | . 1 . . . 2 . 1 2 1 5 Burn 6 | . . . . . 1 . 1 2 1 1 Destroy 5 | . 1 . . . . . . . . 4 Smash 1 | . . . . . 1 . . . . . Melee Attacks 21 | . 4 . . . 4 . . . 9 4 Impact 8 | . 4 . . . 4 . . . . . Slashing 13 | . . . . . . . . . 9 4 Piercing . | . . . . . . . . . . . Sneak Attacks 1 | . . . . . 1 . . . . . Combat Hostiles . | . . . . . . . . . . . Follow-up Attacks . | . . . . . . . . . . . Damage Inflicted 6389 | . 553 693 . 12 2060 . 162 830 1130 949 Guns 2640 | . 285 33 . . 422 . 154 734 175 837 Cannons 2046 | . 268 247 . . 1531 . . . . . Explosions 1102 | . . 411 . . . . . 96 595 . Melee 571 | . . . . . 102 . . . 357 112 Ramming 30 | . . 2 . 12 5 . 8 . 3 . Kinetic 285 | . 285 . . . . . . . . . Thermal 4456 | . 268 335 . . 1953 . 154 734 175 837 Explosive 1047 | . . 356 . . . . . 96 595 . Electromagnetic . | . . . . . . . . . . . Impact 102 | . . . . . 102 . . . . . Slashing 469 | . . . . . . . . . 357 112 Piercing . | . . . . . . . . . . . Highest Corruption 4 | . . . . . . . . 2 . 4 Average Corruption 2 | . . . . . . . . 1 . 3 Corruption Purged . | . . . . . . . . . . . Corruption Blocked . | . . . . . . . . . . . Effects 1 | . . . . . . . . 1 . . Matter Fused 1 | . . . . . . . . 1 . . Overload Shots . | . . . . . . . . . . . Overflow Damage 157 | . 1 17 . . 102 . . . 37 . Projectiles 18 | . 1 17 . . . . . . . . Explosions . | . . . . . . . . . . . Melee 139 | . . . . . 102 . . . 37 . Knockbacks . | . . . . . . . . . . . Impact . | . . . . . . . . . . . Kinetic . | . . . . . . . . . . . Secondary . | . . . . . . . . . . . Self-Inflicted Damage 105 | . . 76 . . . . . 28 1 . Shots 4 | . . 3 . . . . . 1 . . Rammed 2 | . . . . . . . . . 1 1 Targets Rammed 12 | . . 3 . 4 1 . 2 . 1 1 Kicked 10 | . . 3 . 4 1 . 2 . . . Crushed . | . . . . . . . . . . . Highest Temperature 341 | . 318 275 . . 315 . . 341 138 218 Average Temperature 112 | . 110 109 . . 72 . . 153 92 144 Received Heat Transfer 2006 | . 99 156 . . 756 . 45 279 201 470 Effects 2 | . . 2 . . . . . . . . Interference 2 | . . 2 . . . . . . . . Siege Activations . | . . . . . . . . . . . Robots Corrupted . | . . . . . . . . . . . Combat Hostiles . | . . . . . . . . . . . Parts Fried . | . . . . . . . . . . . Impact Corruptions 3 | . . . . . 3 . . . . . Robots Melted . | . . . . . . . . . . . Combat Hostiles . | . . . . . . . . . . . Parts Melted 12 | . . 1 . . 6 . . 1 . 4 Heat Transferred 8253 | . 481 569 . . 3323 . 407 1608 518 1347 Parts Sabotaged . | . . . . . . . . . . . Parts Stolen . | . . . . . . . . . . . Parts Stripped . | . . . . . . . . . . . Power Chain Reactions . | . . . . . . . . . . . Missiles Intercepted . | . . . . . . . . . . . Alert | -11 -10 -10 -10 -9 -8 -7 -7 -7 -6 -6 ------- Run | Scr Mat Min Exi Min Mat Fac DSF Gar Fac Gar Peak Influence 391 | . 364 391 . . 288 94 100 185 186 260 Initial 96 | . . 45 . . . 94 65 86 96 90 Average 130 | . 117 222 . . 144 94 82 107 97 191 Maximum Alert Level 1 | . 1 1 . . 1 . . . . 1 Low Security (%) 78 | 100 92 47 . 100 67 100 100 100 100 40 Level 1 21 | . 7 52 . . 32 . . . . 60 Level 2 . | . . . . . . . . . . . Level 3 . | . . . . . . . . . . . Level 4 . | . . . . . . . . . . . Level 5 . | . . . . . . . . . . . High Security . | . . . . . . . . . . . Max Security . | . . . . . . . . . . . Squads Dispatched 9 | . 1 . . . 3 . 1 . 4 . Investigation 3 | . 1 . . . 2 . . . . . Extermination 1 | . . . . . . . . . 1 . Reinforcement 5 | . . . . . 1 . 1 . 3 . Assault . | . . . . . . . . . . . Garrison . | . . . . . . . . . . . Intercept . | . . . . . . . . . . . Searches Triggered . | . . . . . . . . . . . Construction Impeded 1 | . . . . . . . . . 1 . Haulers Reinforced . | . . . . . . . . . . . Active Scanning Responses . | . . . . . . . . . . . Cargo Convoy Interrupts 1 | . . . . . . . . . 1 . Stealth | -11 -10 -10 -10 -9 -8 -7 -7 -7 -6 -6 --------- Run | Scr Mat Min Exi Min Mat Fac DSF Gar Fac Gar Distress Signals 4 | . 1 . . . 3 . . . . . Communications Jammed . | . . . . . . . . . . . Distress Signals . | . . . . . . . . . . . Times Spotted 132 | . 25 9 . . 34 . 8 9 27 20 Peak Tracking Total 13 | . 3 3 . . 5 . 5 4 12 13 Tactical Retreats 10 | . . 2 . . 4 . 2 . 1 1 Traps | -11 -10 -10 -10 -9 -8 -7 -7 -7 -6 -6 ------- Run | Scr Mat Min Exi Min Mat Fac DSF Gar Fac Gar Traps Triggered 7 | . 1 . . . . . 1 2 . 3 Indirectly . | . . . . . . . . . . . Trap Hack Attempts . | . . . . . . . . . . . Triggered . | . . . . . . . . . . . Disarmed . | . . . . . . . . . . . Reprogrammed . | . . . . . . . . . . . Reused . | . . . . . . . . . . . Traps Extracted . | . . . . . . . . . . . Installed . | . . . . . . . . . . . Triggered 1 | . . 1 . . . . . . . . Machines | -11 -10 -10 -10 -9 -8 -7 -7 -7 -6 -6 ---------- Run | Scr Mat Min Exi Min Mat Fac DSF Gar Fac Gar Machines Disabled 8 | . 1 5 . . 1 . . 1 . . Max in Single Turn 4 | . 1 4 . . 1 . . 1 . . Garrison Relay 1 | . . . . . . . . 1 . . Machines Sabotaged . | . . . . . . . . . . . Garrisons Compromised . | . . . . . . . . . . . Overloaded Fab Kills . | . . . . . . . . . . . Hacking | -11 -10 -10 -10 -9 -8 -7 -7 -7 -6 -6 --------- Run | Scr Mat Min Exi Min Mat Fac DSF Gar Fac Gar Machines Accessed 20 | . 10 . 1 . 6 1 . . 2 . Terminals 14 | . 7 . . . 5 1 . . 1 . Fabricators . | . . . . . . . . . . . Repair Stations 2 | . 1 . . . 1 . . . . . Recycling Units 2 | . 2 . . . . . . . . . Scanalyzers . | . . . . . . . . . . . Garrison Access 1 | . . . . . . . . . 1 . Total Hacks 54 | . 29 . 4 . 14 2 . . 5 . Successful 27 | . 12 . 4 . 7 1 . . 3 . Failed 27 | . 17 . . . 7 1 . . 2 . Catastrophic 2 | . 2 . . . . . . . . . Database Lockouts . | . . . . . . . . . . . Manual 23 | . 14 . . . 6 . . . 3 . Terminals 38 | . 21 . . . 11 2 . . 4 . Fabricators . | . . . . . . . . . . . Repair Stations 7 | . 4 . . . 3 . . . . . Recycling Units 4 | . 4 . . . . . . . . . Scanalyzers . | . . . . . . . . . . . Garrison Access 1 | . . . . . . . . . 1 . Terminal Hacks 13 | . 4 . 4 . 3 1 . . 1 . Record 4 | . . . 4 . . . . . . . Open DSF 1 | . . . . . . 1 . . . . Emergency Access Points 1 | . . . . . 1 . . . . . Unreport Threat 1 | . 1 . . . . . . . . . Locate Traps 1 | . 1 . . . . . . . . . Recall Investigation 1 | . . . . . 1 . . . . . Hauler Manifests 1 | . 1 . . . . . . . . . Registered Components 1 | . 1 . . . . . . . . . Zone Layout 2 | . . . . . 1 . . . 1 . Fabricator Hacks . | . . . . . . . . . . . Repair Station Hacks 4 | . 2 . . . 2 . . . . . Scan Component 2 | . 1 . . . 1 . . . . . Repair 2 | . 1 . . . 1 . . . . . Recycling Unit Hacks 3 | . 3 . . . . . . . . . Retrieve Matter 1 | . 1 . . . . . . . . . Retrieve Components 2 | . 2 . . . . . . . . . Scanalyzer . | . . . . . . . . . . . Garrison Access Hacks 1 | . . . . . . . . . 1 . Unlock Access 1 | . . . . . . . . . 1 . Unauthorized Hacks 6 | . 3 . . . 2 . . . 1 . Terminals 6 | . 3 . . . 2 . . . 1 . Assimilate 2 | . 2 . . . . . . . . . Botnet 3 | . . . . . 2 . . . 1 . Operators 1 | . 1 . . . . . . . . . Fabricators . | . . . . . . . . . . . Repair Stations . | . . . . . . . . . . . Recycling Units . | . . . . . . . . . . . Scanalyzers . | . . . . . . . . . . . Garrison Access . | . . . . . . . . . . . Data Cores Recovered . | . . . . . . . . . . . Used . | . . . . . . . . . . . Hacking Detections 16 | . 8 . . . 5 1 . . 2 . Full Trace Events 2 | . . . . . 2 . . . . . Feedback Events . | . . . . . . . . . . . Feedback Blocked . | . . . . . . . . . . . Robot Schematics Acquired . | . . . . . . . . . . . Robots Built . | . . . . . . . . . . . Authchips . | . . . . . . . . . . . Time . | . . . . . . . . . . . Total Robot Build Rating . | . . . . . . . . . . . Part Schematics Acquired . | . . . . . . . . . . . Parts Built . | . . . . . . . . . . . Authchips . | . . . . . . . . . . . Time . | . . . . . . . . . . . Total Part Build Rating . | . . . . . . . . . . . Parts Repaired 2 | . 1 . . . 1 . . . . . Time 52 | . 26 . . . 26 . . . . . Parts Recycled . | . . . . . . . . . . . Recycled Matter . | . . . . . . . . . . . Retrieved Matter . | . . . . . . . . . . . Retrieved Components 5 | . 5 . . . . . . . . . Parts Scanalyzed . | . . . . . . . . . . . Part Schematics Acquired . | . . . . . . . . . . . Parts Damaged . | . . . . . . . . . . . Bothacking | -11 -10 -10 -10 -9 -8 -7 -7 -7 -6 -6 ------------ Run | Scr Mat Min Exi Min Mat Fac DSF Gar Fac Gar Used RIF Installer 1 | . . . . . . . . 1 . . Robots Hacked . | . . . . . . . . . . . Non-combat . | . . . . . . . . . . . Combat . | . . . . . . . . . . . Robot Hacks Applied . | . . . . . . . . . . . Relay Couplers Released 5 | . . . . . . . . 5 . . Machine Destruction 5 | . . . . . . . . 5 . . Fabnet Peak Effective % . | . . . . . . . . . . . Robots Rewired . | . . . . . . . . . . . Allies Hacked . | . . . . . . . . . . . Hacks Repelled . | . . . . . . . . . . . Allies | -11 -10 -10 -10 -9 -8 -7 -7 -7 -6 -6 -------- Run | Scr Mat Min Exi Min Mat Fac DSF Gar Fac Gar Total Allies 3 | . . 1 . 2 . . . . . . Largest Group 2 | . . 1 . 2 2 . . . . . Highest-Rated Group 38 | . . 31 . 38 38 . . . . . Highest-Rated Ally 31 | . . 31 . 31 31 . . . . . Total Orders . | . . . . . . . . . . . Ally Attacks 8 | . . . . . 8 . . . . . Total Damage 103 | . . . . . 103 . . . . . Kills . | . . . . . . . . . . . Allies Corrupted . | . . . . . . . . . . . Allies Melted . | . . . . . . . . . . . Intel | -11 -10 -10 -10 -9 -8 -7 -7 -7 -6 -6 ------- Run | Scr Mat Min Exi Min Mat Fac DSF Gar Fac Gar Robot Analysis Total . | . . . . . . . . . . . Derelict Logs Recovered 1 | . . 1 . . . . . . . . Drone Launches . | . . . . . . . . . . . Drone Recoveries . | . . . . . . . . . . . Exploration | -11 -10 -10 -10 -9 -8 -7 -7 -7 -6 -6 ------------- Run | Scr Mat Min Exi Min Mat Fac DSF Gar Fac Gar Turns Passed 5768 | 360 1169 1198 306 276 943 148 103 391 644 230 Spaces Moved 2996 | 122 685 575 161 127 395 118 62 221 419 111 Core 19 | 14 . . . . . . . . . 5 Treads . | . . . . . . . . . . . Legs 2416 | . 378 575 161 127 395 118 62 109 385 106 Wheels 561 | 108 307 . . . . . . 112 34 . Hover . | . . . . . . . . . . . Flight . | . . . . . . . . . . . Fastest Speed 50 | 50 100 190 190 190 120 120 120 120 120 50 Average Speed 149 | 101 143 190 190 190 157 120 122 120 121 118 Slowest Speed 200 | 200 190 190 190 190 190 120 190 120 190 190 Overloaded Moves . | . . . . . . . . . . . Propulsion Burnouts . | . . . . . . . . . . . Robots Hopped . | . . . . . . . . . . . Cave-ins Triggered . | . . . . . . . . . . . Exploration Rate (%) 43 | 13 99 92 52 41 37 5 48 43 16 35 Regions Visited 10 Branch Regions 3 Pre-discovered Areas 1 | . . . 1 . . . . . . . Known Exits Taken 7 | . 1 1 1 1 1 1 . . 1 . Unknown Exits Taken 1 | 1 . . . . . . . . . . Scrap Searched 1 | . . 1 . . . . . . . . Spaces Dug 17 | . 3 11 . . 3 . . . . . Terrain Destroyed 90 | . 3 38 . . 19 . . 11 19 . Melee 6 | . 3 . . . 3 . . . . . Projectile 18 | . . 2 . . 16 . . . . . AOE 66 | . . 36 . . . . . 11 19 . Terrain Rammed . | . . . . . . . . . . . Walls Destroyed . | . . . . . . . . . . . Machines Disabled . | . . . . . . . . . . . Actions | -11 -10 -10 -10 -9 -8 -7 -7 -7 -6 -6 --------- Run | Scr Mat Min Exi Min Mat Fac DSF Gar Fac Gar Total 3903 | 355 811 646 162 159 589 124 80 288 521 168 Wait 431 | 222 54 31 . 27 65 . . 2 24 6 Move 2988 | 121 684 574 160 126 394 117 62 220 419 111 Hop . | . . . . . . . . . . . Pick Up 70 | 6 17 1 1 1 14 3 2 7 9 9 Fast Attach 35 | 6 5 2 . . 5 . 3 4 9 1 Attach 34 | . 2 1 . . 8 3 2 5 5 8 Detach 5 | . . . . . 1 . 1 . 2 1 Swap 47 | . 6 8 . . 14 1 . 2 14 2 Drop 59 | . 12 6 1 1 18 . 4 . 16 1 Fire 179 | . 27 20 . . 65 . 5 32 13 17 Melee 21 | . 4 . . . 4 . . . 9 4 Ram 2 | . . . . . . . . . 1 1 Kick 9 | . . 3 . 4 1 . 1 . . . Crush . | . . . . . . . . . . . Escape Stasis 23 | . . . . . . . . 16 . 7 Rewire . | . . . . . . . . . . . Trap . | . . . . . . . . . . . Miscellaneous . | . . . . . . . . . . . Route ------- -11/Scrapyard -10/Materials (discovered 5 exits: *Mat x3 / *Min x2) -10/Mines (discovered 3 exits: *Mat x2 / *Exi) -10/Exiles -9/Mines -8/Materials -7/Factory -7/DSF -7/Garrison -6/Factory -6/Garrison History --------- Turn | Location | Event 10 | -11/Scrapyard | Discovered new exit (range 16) 361 | -11/Scrapyard | Entered Materials 362 | -10/Materials | Build established: Mutant 366 | -10/Materials | Discovered new exit (range 13) 478 | -10/Materials | Discovered new exit (range 16) 492 | -10/Materials | Identified exit to Materials 570 | -10/Materials | Discovered new exit (range 11) 890 | -10/Materials | Discovered exit to Materials (range 8) 1003 | -10/Materials | Identified exit to Mines 1177 | -10/Materials | Repaired Lrg. Matter Pod 1250 | -10/Materials | Discovered exit to Materials (range 7) 1530 | -10/Materials | Entered Mines 1541 | -10/Mines | Met a Derelict bent on vengeance 1611 | -10/Mines | Discovered exit to Materials (range 10) 1680 | -10/Mines | Discovered exit to Materials (range 10) 2308 | -10/Mines | Received a Mining Laser from a helpful Derelict 2417 | -10/Mines | Learned 2 Materials zone layouts 2475 | -10/Mines | Build established: Scavenger-Mutant 2719 | -10/Mines | Deemed a non-threat by the Exiles lab entrance 2721 | -10/Mines | Discovered new exit (range 5) 2726 | -10/Mines | Identified exit to Exiles 2728 | -10/Mines | Entered Exiles 2772 | -10/Exiles | Met 8R-AWN 2806 | -10/Exiles | Met EX-HEX 2860 | -10/Exiles | Met EX-BIN 2892 | -10/Exiles | Met EX-DEC 2922 | -10/Exiles | Learned location of Zion (-6) 3011 | -10/Exiles | Discovered new exit (range 14) 3032 | -10/Exiles | Identified exit to Mines 3034 | -10/Exiles | Entered Mines 3212 | -9/Mines | Received a Rocket Launcher from a helpful Derelict 3273 | -9/Mines | Discovered new exit (range 4) 3277 | -9/Mines | Identified exit to Materials 3310 | -9/Mines | Entered Materials 3310 | -8/Materials | Accompanied by 2 allies 3310 | -8/Materials | Evolved 4 slots: Propulsion x2, Utility x2 3315 | -8/Materials | Led the pair of lost Derelicts to an unsafe place 3507 | -8/Materials | Repaired Lgt. Armor Plating 3728 | -8/Materials | Lost 3 parts (2p1u) 4156 | -8/Materials | Discovered new exit (range 13) 4250 | -8/Materials | Identified exit to Factory 4253 | -8/Materials | Entered Factory 4253 | -7/Factory | Evolved 2 slots: Propulsion x1, Utility x1 4401 | -7/Factory | Identified exit to DSF 4401 | -7/Factory | Entered DSF 4422 | -7/DSF | Additional patrols routed to DSF 4472 | -7/DSF | Lost 3 parts (3n) 4483 | -7/DSF | Discovered new exit (range 18) 4503 | -7/DSF | Identified exit to Garrison 4504 | -7/DSF | Entered Garrison 4570 | -7/Garrison | Triggered checkpoint 4616 | -7/Garrison | Lost 3 parts (2u1w) 4658 | -7/Garrison | Triggered checkpoint 4703 | -7/Garrison | Lost 4 parts (1p3n) 4732 | -7/Garrison | Triggered checkpoint 4822 | -7/Garrison | Lost 5 parts (1p2n2w) 4873 | -7/Garrison | Discovered new exit (range 11) 4883 | -7/Garrison | Identified exit to Factory 4891 | -7/Garrison | Installed Relay Interface Framework 4895 | -7/Garrison | Entered Factory 4895 | -6/Factory | Evolved 2 slots: Utility x1, Weapon x1 4986 | -6/Factory | Lost 4 parts (1p1n2w) 5497 | -6/Factory | Cargo convoy interrupted 5539 | -6/Factory | Identified exit to Garrison 5539 | -6/Factory | Entered Garrison 5561 | -6/Garrison | Lost 4 parts (1p2u1w) 5722 | -6/Garrison | Triggered checkpoint 5722 | -6/Garrison | Triggered checkpoint 5747 | -6/Garrison | Core integrity fell below 50% 5761 | -6/Garrison | Core integrity fell below 20% 5769 | -6/Garrison | Destroyed by S-27 Virus with Autogun Last Messages --------------- 05757_ Relay Coupler [Sentry] crushed and broken. 05757_ Adv. Heat Sink crushed and broken. 05757_ Imp. Light Armor Plating crushed and broken. 05757_ Force Rifle crushed and broken. 05757_ Focal Shield crushed and broken. 05757_ Gatling Laser crushed and broken. 05757_ Arm. Wheel crushed and broken. 05757_ Triggered Stasis Trap. 05757_ A bubble of rippling energy engulfs the area. 05757_ Field strength at 94. 05758_ Field strength at 83. 05759_ S-27 Virus destroyed. 05759_ Field strength at 69. 05760_ Field strength at 58. 05761_ Field strength at 39. 05762_ Field strength at 24. 05763_ Field strength at 9. 05764_ Stasis field depleted. 05767_ Slammed into S-27 Virus. 05768_ Acquired 5 matter. Map ----- +----------------------------------------------------+ | ?????????????????????????????????????????????????? | | ?????????????????????????????????????????????????? | | ?????????????????????????????????????????????????? | | ?????????????????????????????????????????????????? | | ?????????????????????????????????????????????????? | | ?????????????????????????????????????????????????? | | ?????????????????????????????????????????????????? | | ?????????????????????????????????????????????????? | | ?????????????????????????????????????????????????? | | ?????????????????????????????????????????????????? | | ?????????????????????????????????????????????????? | | ?????????????????????????##??????????????????????? | | ????????????????????????? ??????????????????????? | | ????????????????????????? #??????????????????????? | | ????????????????????????? #??????????????????????? | | ????????????????????????? #??????????????????????? | | ######??????????????????# #??????????????????????? | | #??????####???????## #??????????????????????? | | #??????# ??????? ??????????????????????? | | ### #??????# ??????? ??????????????????????? | | ??# #??????# #???????# #??????????????????????? | | ??# #??????# #???###?# #??????????????????????? | | ??# #??????# #??? ?# #??????????????????????? | | ??# #??????# #???# #?# #??????????????????????? | | ??# #####??# #???#!#?# #??????????????????????? | | ??# ##" ?# #???#%#?# @#??????????????????????? | | ?## ##%" ## ##??#[#?# #??????????????????????? | | ## " ####+###=%#??????????????????????? | | ==/%^ !%s!#??????????????????????? | | *%!%*=^!ss=#??????????????????????? | | ## ## ## =###########??????????????????????? | | ?# ## ## #????????????????????????????????? | | ?" #??????????????????????????????? | | ?" #??????????????????????????????? | | ?" #??????????????????????????????? | | ?" #??????????????????????????????? | | ?# ## ## ###??????????????????????????????? | | ?# ## ## #????????????????????????????????? | | ?# ???????????????????????????????? | | ?# ?????????????????????????????? | | ?# #####????????????????????????????? | | ?# ##""""######????????????????????????????????? | | ?# #???????????????????????????????????????????? | | ?# #???????????????????????????????????????????? | | ?# #???????????????????????????????????????????? | | ?# #???????????????????????????????????????????? | | ?# ????????????????????????????????????????????? | | ?# ????????????????????????????????????????????? | | ?# ????????????????????????????????????????????? | | ?????????????????????????????????????????????????? | +----------------------------------------------------+ Best States ------------- Heat Dissipation 56 Coolant Potential 65 Energy Generation 18 Energy Capacity 265 Matter Stores 300 Matter Capacity 300 Sight Range 18 Terrain Scan Density 10 EM Shielding 2 Armor Coverage 225 Resistance: KI 20 Resistance: EM 15 Evasion (%) 55 Targeting Accuracy 5 Target Analysis 6 Recoil Reduction 1 Item Schematics ----------------- None Robot Schematics ------------------ None Fabricated ------------ Nothing Alien Tech Used ----------------- None Achievements -------------- None Challenges ------------ None Game ------ Seed ContainmentTrapSuite Manual? 0 Play Time 01:27:27 Cumulative 91.1 hours Start 2022.07.10 @ 15:25:39 End 2022.07.11 @ 11:05:18 Sessions 3 Manual Loads 0 Difficulty Rogue Special Mode None Game No. 67 Rogue 48 Adventurer 16 Explorer 3 Win Type - Total 3 Types 3/0/0/0/0/0/0/0/0 Lore% 47 Gallery% 52 Achievement% 41 Wizard Run 0 Options --------- ASCII 0 Keyboard 1 Movement Numpad Keybinds 0 Fullscreen 1 Font 28/Terminus Map View 67x55 Tactical HUD 1 Map Filters NONE Filters NONE Steam 1 RUN: 8c66c457-243d-491f-9f7d-31d0b95f9fe5